bitfinex/quotes_ETHUSD_20240721
["timestamp","ask_amount","ask_price","bid_price","bid_amount"]
[1721572888118,0.09175511,3519.1,3518.2,2.276]
[1721572888447,2.93339511,3519.1,3518.2,2.276]
[1721572888770,0.3510865,3519.0,3518.2,2.276]
[1721572888966,0.44284717,3519.0,3518.2,2.276]
[1721572889328,3.28456717,3519.0,3518.2,2.276]
[1721572889527,2.93348067,3519.0,3518.2,2.276]
[1721572890760,0.09176067,3519.0,3518.2,2.276]
[1721572890966,2.84159,3519.2,3518.2,2.276]
[1721572891133,0.09175628,3518.9,3518.2,2.276]
[1721572891346,2.84159,3519.2,3518.2,2.276]
[1721572891531,0.09174746,3518.8,3518.2,2.276]
[1721572891731,0.568307,3519.1,3518.2,2.276]
[1721572891951,0.09173865,3518.7,3518.2,2.276]
[1721572892135,0.568307,3519.1,3518.2,2.276]
[1721572892760,0.09176509,3519.0,3518.2,2.276]
[1721572893966,0.4419283,3519.0,3518.2,2.276]
[1721572894168,0.09176509,3519.0,3518.2,2.276]
[1721572894342,0.29700608,3519.5,3518.2,2.276]
[1721572894524,0.0918017,3518.9,3518.2,2.276]
[1721572894848,2.84156,3519.2,3518.2,2.276]
[1721572895183,0.568296,3519.1,3518.2,2.276]
[1721572895331,0.66010686,3519.1,3518.2,2.276]
[1721572895532,0.66010686,3519.1,3518.2,2.84235]
[1721572895732,0.09181086,3519.1,3518.4,2.2916]
[1721572895978,3.439371,3519.8,3518.4,2.2916]
[1721572896483,0.09187116,3519.7,3518.8,2.3782]
[1721572897642,0.598291,3519.8,3518.8,2.3782]
[1721572897838,0.142,3519.9,3518.8,2.3782]
[1721572897839,0.09188426,3519.7,3518.8,2.3782]
[1721572898074,0.142,3519.9,3518.8,2.3782]
[1721572898385,0.09189308,3519.8,3518.8,2.3782]
[1721572898674,2.84131,3519.5,3518.8,2.3782]
[1721572898878,2.8414,3519.4,3518.8,2.3782]
[1721572899083,2.84172,3519.0,3518.8,2.3782]
[1721572899289,2.84172,3519.0,3517.8,2.84264]
[1721572899290,2.84172,3519.0,3518.1,2.3782]
[1721572899645,2.84131,3519.5,3518.1,2.3782]
[1721572899880,2.84148,3519.3,3518.2,2.3782]
[1721572900089,3.41895358,3519.3,3518.2,5.3782]
[1721572900259,2.93347275,3519.2,3518.2,5.3782]
[1721572900448,2.84165,3519.1,3518.2,2.3782]
[1721572900788,0.09185438,3519.0,3518.2,2.3782]
[1721572901788,2.93357438,3519.0,3518.2,2.3782]
[1721572902081,0.29335744,3518.9,3518.2,2.3782]
[1721572902382,0.08875987,3518.9,3518.2,2.3782]
[1721572902753,2.84123,3519.6,3518.4,2.3782]
[1721572902955,0.08871569,3518.8,3518.4,2.3782]
[1721572903151,2.84132,3519.5,3518.6,2.3782]
[1721572903377,0.08871774,3518.7,3518.6,2.3782]
[1721572903698,0.8862653,3519.8,3518.6,2.3782]
[1721572903850,0.08873449,3518.7,3518.6,2.3782]
[1721572904148,2.84134,3519.5,3518.6,2.3782]
[1721572904352,0.08876988,3518.7,3518.6,5.22023]
[1721572904554,0.8862653,3519.6,3518.7,2.3782]
[1721572904971,0.142,3519.9,3518.7,2.3782]
[1721572905179,0.142,3519.9,3518.8,2.84186]
[1721572905387,0.142,3519.9,3518.9,2.3782]
[1721572905558,0.142,3519.9,3519.0,2.900206]
[1721572906075,2.98305,3519.9,3519.0,2.900206]
[1721572906279,3.8693153,3519.9,3519.0,2.3782]
[1721572906599,2.84122,3519.7,3519.0,2.3782]
[1721572907456,3.7274853,3519.7,3519.0,2.3782]
[1721572907966,0.8862653,3519.7,3519.0,2.3782]
[1721572908172,0.8862653,3519.5,3519.0,2.3782]
[1721572908871,1.18168707,3519.7,3518.1,2.3782]
[1721572908872,2.84161,3519.2,3518.1,2.3782]
[1721572909094,0.8862653,3519.4,3518.3,2.3782]
[1721572909271,0.8862653,3519.3,3518.3,2.3782]
[1721572909857,3.7278153,3519.2,3518.3,2.3782]
[1721572910065,3.7278153,3519.2,3518.3,3.928271]
[1721572910066,2.93039231,3519.2,3518.3,3.928271]
[1721572910290,2.84165,3519.1,3518.3,3.928271]
[1721572910707,3.81676573,3519.1,3518.3,3.928271]
[1721572911393,0.97511573,3519.1,3518.3,3.928271]
[1721572911608,0.8862653,3519.0,3518.3,3.928271]
[1721572911754,0.8862653,3519.0,3518.5,2.3782]
[1721572911955,4.33173334,3519.4,3518.5,2.3782]
[1721572911956,0.08878197,3518.9,3518.5,2.3782]
[1721572912190,0.8862653,3519.3,3518.5,2.3782]
[1721572912391,0.08877519,3518.8,3518.5,2.3782]
[1721572912600,0.8862653,3519.3,3518.6,0.74633681]
[1721572912801,0.8862653,3519.3,3518.5,2.3782]
[1721572912953,3.81662575,3519.2,3518.5,2.3782]
[1721572913890,0.97507575,3519.2,3518.5,2.3782]
[1721572914400,0.8862653,3519.1,3518.5,2.3782]
[1721572914758,0.08879835,3519.0,3518.5,2.3782]
[1721572914959,0.8862653,3519.3,3518.7,2.3782]
[1721572915257,4.02308707,3519.4,3518.7,2.3782]
[1721572915258,0.8862653,3519.2,3518.7,2.3782]
[1721572915584,0.0888138,3519.1,3518.7,2.3782]
[1721572916459,0.9750791,3519.1,3518.7,2.3782]
[1721572916657,0.8862653,3519.0,3518.7,2.3782]
[1721572916859,0.08880832,3518.9,3518.7,2.3782]
[1721572917059,0.97507362,3518.9,3518.7,2.3782]
[1721572919596,0.08880832,3518.9,3518.7,2.3782]
[1721572920397,0.8862653,3519.1,3518.7,2.3782]
[1721572920606,0.08877315,3518.8,3518.7,2.3782]
[1721572920763,0.8862653,3519.1,3518.7,2.61602]
[1721572920964,0.08876854,3518.8,3518.7,2.61602]
[1721572921167,0.8862653,3519.2,3518.7,2.61602]
[1721572921522,0.8862653,3519.1,3518.7,2.3782]
[1721572921697,0.97506802,3519.1,3518.7,2.3782]
[1721572922199,0.8862653,3519.0,3518.7,2.3782]
[1721572922588,0.08878288,3518.9,3518.7,2.3782]
[1721572923506,0.97504818,3518.9,3518.7,2.3782]
[1721572926223,0.08878288,3518.9,3518.7,2.3782]
[1721572927492,0.97504818,3518.9,3518.7,2.3782]
[1721572927693,0.08878288,3518.9,3518.7,2.3782]
[1721572928634,0.97504818,3518.9,3518.7,2.3782]
[1721572928792,0.8862653,3518.8,3518.7,2.3782]
[1721572928986,0.97505616,3518.8,3518.7,2.3782]
[1721572931889,0.97505616,3518.8,3518.0,7.28]
[1721572931890,0.7377365,3518.8,3518.3,2.3443]
[1721572932130,0.89481667,3518.5,3518.0,9.6243]
[1721572932308,0.89485353,3518.3,3518.0,9.6243]
[1721572932828,0.98355262,3518.2,3518.0,9.6243]
[1721572933220,0.08869909,3518.2,3518.0,9.6243]
[1721572934238,0.98355262,3518.2,3518.0,9.6243]
[1721572934536,0.89485353,3518.2,3518.0,9.6243]
[1721572934690,3.73721353,3518.2,3518.0,9.6243]
[1721572934890,0.98341209,3518.1,3518.0,9.6243]
[1721572935316,0.98341209,3518.1,3518.0,2.3443]
[1721572935708,0.08855856,3518.1,3518.0,2.3443]
[1721572936646,0.08855856,3518.1,3517.4,2.4261]
[1721572936946,0.08855856,3518.1,3517.4,3.981026]
[1721572937644,2.93100856,3518.1,3517.4,2.4261]
[1721572937842,2.84253,3518.0,3517.4,2.4261]
[1721572938243,0.08841452,3517.9,3517.4,2.4261]
[1721572940147,0.89485353,3518.1,3517.4,2.4261]
[1721572940342,0.08837385,3517.8,3517.4,2.4261]
[1721572940553,3.73721353,3518.2,3517.4,2.4261]
[1721572940843,0.08836503,3517.7,3517.4,2.4261]
[1721572941051,3.73729353,3518.1,3517.4,2.4261]
[1721572941228,0.08835621,3517.6,3517.4,2.4261]
[1721572941428,3.73729353,3518.1,3517.4,2.4261]
[1721572941640,0.08834738,3517.5,3517.4,2.4261]
[1721572941827,2.84244,3518.1,3517.4,2.4261]
[1721572942031,0.08834738,3517.5,3517.4,2.4261]
[1721572942245,3.61856606,3518.1,3517.4,2.4261]
[1721572942760,0.08839149,3518.0,3517.4,2.4261]
[1721572943050,2.84238,3518.2,3517.4,2.4261]
[1721572943254,0.08838267,3517.9,3517.4,2.4261]
[1721572943552,0.08837385,3517.8,3517.4,2.4261]
[1721572943715,2.84238,3518.2,3517.4,2.4261]
[1721572943911,0.08836503,3517.7,3517.4,2.4261]
[1721572944126,2.84245,3518.1,3517.4,2.66871]
[1721572944323,4.02388707,3518.4,3517.4,2.4261]
[1721572944324,0.08835621,3517.6,3517.4,2.4261]
[1721572944675,3.73760353,3517.8,3516.8,2.4261]
[1721572944835,0.08831752,3517.5,3516.8,2.4261]
[1721572945039,0.98318648,3517.7,3516.8,2.4261]
[1721572945241,0.08830649,3517.4,3516.8,2.4261]
[1721572945461,2.84295,3517.5,3516.8,2.4261]
[1721572945665,0.08829767,3517.3,3516.8,2.4261]
[1721572945974,0.08825898,3517.2,3516.8,2.4261]
[1721572946265,0.89485353,3517.6,3516.8,2.4261]
[1721572946470,0.08825016,3517.1,3516.8,2.4261]
[1721572946627,0.56142633,3517.5,3516.8,2.4261]
[1721572946827,0.08821257,3517.0,3516.8,2.4261]
[1721572947135,0.08817277,3516.9,3516.8,2.4261]
[1721572947341,2.84334,3517.0,3516.8,2.4261]
[1721572947548,2.8431,3517.3,3516.8,2.4261]
[1721572947549,0.08813427,3516.9,3516.8,2.4261]
[1721572947785,3.127539,3517.2,3516.8,2.4261]
[1721572947786,2.84326,3517.1,3516.8,2.4261]
[1721572947940,2.84326,3517.1,3516.3,7.28]
[1721572947941,2.93156599,3516.9,3516.4,2.4812]
[1721572948138,2.84341,3516.9,3516.4,2.4812]
[1721572948464,0.08814716,3516.8,3516.4,2.4812]
[1721572948953,2.84326,3517.1,3516.4,2.4812]
[1721572949153,0.08806796,3516.7,3516.4,2.4812]
[1721572949463,2.84326,3517.1,3516.4,2.4812]
[1721572949673,0.08805293,3516.6,3516.4,2.4812]
[1721572949881,2.84326,3517.1,3516.4,2.4812]
[1721572950033,0.08803635,3516.5,3516.4,2.4812]
[1721572950577,2.8435,3516.8,3516.4,2.4812]
[1721572950739,0.08802749,3516.5,3516.4,2.4812]
[1721572950938,2.84358,3516.7,3516.4,2.4812]
[1721572951280,2.84358,3516.7,3515.8,7.28]
[1721572951281,0.08802859,3516.5,3515.9,2.4812]
[1721572951443,2.84366,3516.6,3515.9,2.4812]
[1721572951638,0.08801976,3516.4,3515.9,2.4812]
[1721572951863,0.08802549,3516.5,3515.9,2.4812]
[1721572952169,0.08801666,3516.4,3515.9,2.4812]
[1721572952477,3.73794353,3517.3,3515.9,2.4812]
[1721572952478,2.84323,3517.2,3516.0,2.472908]
[1721572952642,2.84323,3517.2,3516.1,2.4812]
[1721572952839,0.08806317,3517.1,3516.1,2.4812]
[1721572953280,0.08806317,3517.1,3516.1,5.32523]
[1721572953735,2.93132317,3517.1,3516.1,2.4812]
[1721572953936,2.93132317,3517.1,3516.1,4.2734588]
[1721572955769,0.08806317,3517.1,3516.1,4.2734588]
[1721572955946,0.08806317,3517.1,3516.3,2.4812]
[1721572956149,4.18168707,3517.9,3516.1,1.7922588]
[1721572956150,2.84236,3518.2,3516.9,2.4812]
[1721572956464,0.89485353,3518.3,3517.1,2.3247]
[1721572956465,2.8423,3518.3,3517.1,2.3247]
[1721572956662,2.84244,3518.1,3517.1,2.3247]
[1721572956979,2.8423,3518.3,3517.1,5.16794]
[1721572957969,2.84222,3518.4,3517.2,5.30875]
[1721572958270,0.89485353,3518.8,3517.6,2.013]
[1721572958271,2.84188,3518.8,3517.6,2.013]
[1721572958491,0.89485353,3519.0,3517.6,2.013]
[1721572958492,2.84172,3519.0,3517.8,2.4656]
[1721572958773,2.84166,3519.1,3517.8,2.52244919]
[1721572958975,3.36361043,3519.1,3517.9,0.73782092]
[1721572959187,3.65953326,3519.1,3517.9,0.73782092]
[1721572959590,0.29592283,3519.1,3518.0,2.4656]
[1721572959787,0.29592283,3519.1,3518.0,5.30811]
[1721572960596,0.29592283,3519.1,3518.0,2.4656]
[1721572960899,2.8418,3518.9,3518.0,2.4656]
[1721572961098,2.8418,3518.9,3518.1,0.32034209]
[1721572961398,0.08254009,3518.8,3518.1,0.32034209]
[1721572961982,0.08254009,3518.8,3518.0,2.4656]
[1721572961983,2.84214,3518.5,3518.0,2.4656]
[1721572962179,2.84196,3518.7,3518.0,2.4656]
[1721572962392,0.0825462,3518.4,3518.0,2.4656]
[1721572962597,2.84196,3518.7,3518.0,2.4656]
[1721572962818,0.08253738,3518.3,3518.0,2.4656]
[1721572962962,2.84196,3518.7,3518.0,2.4656]
[1721572963314,0.08252396,3518.2,3518.0,2.4656]
[1721572963599,0.08251514,3518.1,3518.0,2.4656]
[1721572963913,2.84196,3518.7,3518.0,2.4656]
[1721572964198,0.08255923,3518.6,3518.0,2.4656]
[1721572964598,0.29592283,3519.1,3518.0,2.4656]
[1721572964808,0.08257556,3519.0,3518.0,2.4656]
[1721572966666,2.92429556,3519.0,3518.0,2.4656]
[1721572966868,2.84194,3518.8,3518.0,2.4656]
[1721572967165,0.08265734,3518.7,3518.0,2.4656]
[1721572967362,0.08265734,3518.7,3518.1,2.4656]
[1721572967583,5.84164,3519.1,3518.1,2.4656]
[1721572967787,0.08271385,3519.0,3518.1,2.4656]
[1721572968011,0.08271385,3519.0,3518.3,2.4656]
[1721572968197,3.0,3519.2,3518.4,2.4656]
[1721572968392,0.08272378,3519.1,3518.4,2.4656]
[1721572968595,0.89485353,3519.6,3518.5,2.4656]
[1721572968797,0.08271721,3519.0,3518.5,2.4656]
[1721572969034,3.13751812,3519.7,3518.7,2.4656]
[1721572969186,0.0827084,3518.9,3518.7,2.4656]
[1721572969386,0.29635812,3519.7,3518.7,5.30755]
[1721572969606,0.08277469,3519.6,3518.7,2.4656]
[1721572970012,2.92400469,3519.6,3518.7,2.4656]
[1721572970218,3.53014597,3519.6,3518.7,2.4656]
[1721572970425,2.84132,3519.5,3518.7,2.4656]
[1721572970627,2.92408588,3519.5,3518.7,2.4656]
[1721572972517,2.8414,3519.4,3518.7,2.4656]
[1721572972723,2.84147,3519.3,3518.7,2.4656]
[1721572972934,0.29242359,3519.2,3518.7,2.4656]
[1721572973084,3.13399359,3519.2,3518.7,2.4656]
[1721572973285,0.08284,3519.1,3518.7,2.4656]
[1721572976824,2.84149,3519.3,3518.7,2.4656]
[1721572977136,0.08279709,3519.0,3518.7,2.4656]
[1721572977298,2.84149,3519.3,3518.7,2.4656]
[1721572977499,0.08278828,3518.9,3518.7,2.4656]
[1721572977699,2.84156,3519.2,3518.7,2.4656]
[1721572977927,0.08277946,3518.8,3518.7,2.4656]
[1721572978129,2.84147,3519.3,3518.7,2.4656]
[1721572978329,0.08277389,3518.8,3518.7,2.4656]
[1721572978536,2.84147,3519.3,3518.7,2.4656]
[1721572978715,0.08277389,3518.8,3518.7,2.4656]
[1721572978917,2.84157,3519.2,3518.7,2.4656]
[1721572979114,0.08278169,3518.8,3518.7,2.4656]
[1721572979355,2.84147,3519.3,3518.7,2.4656]
[1721572979528,0.08278169,3518.8,3518.7,2.4656]
[1721572979930,2.84157,3519.2,3518.7,2.4656]
[1721572980129,0.08280944,3518.8,3518.7,2.4656]
[1721572980333,2.84173,3519.0,3518.7,2.4656]
[1721572980624,3.125903,3519.0,3518.7,2.4656]
[1721572980836,0.08279262,3518.9,3518.7,2.4656]
[1721572981233,2.84156,3519.2,3518.7,2.4656]
[1721572981448,0.08278381,3518.8,3518.7,2.4656]
[1721572981718,2.8414,3519.4,3518.7,2.4656]
[1721572981924,0.08278381,3518.8,3518.7,2.71216]
[1721572982153,2.84132,3519.5,3518.7,2.4656]
[1721572982521,0.08279831,3518.8,3518.7,2.4656]
[1721572982720,2.84132,3519.5,3518.7,2.4656]
[1721572982963,2.84115,3519.7,3518.7,2.4656]
[1721572982964,2.92424349,3519.4,3518.7,2.4656]
[1721572983374,2.84147,3519.3,3518.7,2.4656]
[1721572983667,0.08284468,3519.3,3518.7,2.4656]
[1721572983971,0.08284468,3519.3,3518.7,2.71216]
[1721572984189,2.84135,3519.5,3518.7,2.71216]
[1721572984470,0.08283613,3519.2,3518.7,2.71216]
[1721572984639,2.84135,3519.5,3518.7,2.71216]
[1721572984838,0.08282731,3519.1,3518.7,2.71216]
[1721572985036,2.84125,3519.6,3518.9,2.4047]
[1721572985361,2.84117,3519.7,3518.9,2.4047]
[1721572985768,0.08289498,3519.6,3518.9,2.4047]
[1721572986546,2.92413498,3519.6,3518.9,2.4047]
[1721572986747,2.84132,3519.5,3518.9,2.4047]
[1721572986953,0.2924215,3519.4,3518.9,2.4047]
[1721572987302,0.08290965,3519.4,3518.9,2.4047]
[1721572987452,2.84161,3519.2,3518.9,2.4047]
[1721572987652,2.92429965,3519.4,3518.9,2.4047]
[1721572987653,2.84164,3519.1,3518.9,2.4047]
[1721572987850,2.92452321,3519.1,3518.9,2.4047]
[1721572988474,0.08288321,3519.1,3518.9,2.4047]
[1721572988776,2.84139,3519.4,3518.9,2.4047]
[1721572988994,0.08287439,3519.0,3518.9,2.4047]
[1721572989176,2.84139,3519.4,3518.9,2.4047]
[1721572989511,0.08287439,3519.0,3518.9,2.4047]
[1721572989663,3.43931411,3519.4,3518.9,2.4047]
[1721572989863,0.08287439,3519.0,3518.9,2.4047]
[1721572990093,2.84148,3519.3,3518.9,2.4047]
[1721572990278,0.08287439,3519.0,3518.9,2.4047]
[1721572990489,2.84148,3519.3,3518.9,2.4047]
[1721572990696,0.08287439,3519.0,3518.9,2.4047]
[1721572990931,2.84124,3519.6,3518.9,2.64517]
[1721572991237,2.84124,3519.6,3518.9,2.4047]
[1721572991538,0.08289619,3519.5,3518.9,2.4047]
[1721572993209,2.92422619,3519.5,3518.9,2.4047]
[1721572993422,2.92421619,3519.5,3518.9,2.4047]
[1721572993876,2.84145,3519.4,3518.9,2.4047]
[1721572994077,2.84148,3519.3,3518.9,2.4047]
[1721572994280,2.92435346,3519.3,3518.9,2.4047]
[1721572995188,2.84156,3519.2,3518.9,2.4047]
[1721572995615,0.08289591,3519.1,3518.9,2.4047]
[1721572997017,3.41804635,3519.3,3518.9,2.4047]
[1721572997219,0.08286483,3519.0,3518.9,2.4047]
[1721572997515,2.84148,3519.3,3518.9,2.4047]
[1721572997675,0.08284256,3519.0,3518.9,2.4047]
[1721572997875,2.84148,3519.3,3518.9,2.4047]
[1721572998097,0.08284256,3519.0,3518.9,2.4047]
[1721572998397,2.84148,3519.3,3518.9,2.4047]
[1721572998718,0.08284702,3519.0,3518.9,2.4047]
[1721572999025,0.08285148,3519.0,3518.9,2.4047]
[1721572999233,2.8414,3519.4,3518.9,2.4047]
[1721572999410,0.08285705,3519.0,3518.9,2.4047]
[1721572999616,3.13768109,3519.7,3518.9,2.4047]
[1721572999821,0.0828438,3519.0,3518.9,2.4047]
[1721573000124,2.84137,3519.5,3518.9,2.4047]
[1721573000328,0.08284491,3519.0,3518.9,2.4047]
[1721573000642,0.08284934,3519.0,3518.9,2.4047]
[1721573000852,2.84141,3519.4,3518.9,2.4047]
[1721573001329,0.08287578,3519.3,3518.9,2.4047]
[1721573001842,0.08286697,3519.2,3518.9,2.4047]
[1721573002009,3.73616353,3519.5,3518.9,2.4047]
[1721573002536,0.97773812,3519.4,3518.9,2.4047]
[1721573002751,3.81915812,3519.4,3518.9,2.4047]
[1721573002908,2.84161,3519.2,3518.9,2.4047]
[1721573003114,3.73646353,3519.2,3518.9,2.4047]
[1721573003336,0.08288377,3519.1,3518.9,2.4047]
[1721573003741,0.9777373,3519.1,3518.9,2.4047]
[1721573004807,0.08288377,3519.1,3518.9,2.4047]
[1721573005012,0.89485353,3519.4,3518.9,2.84647]
[1721573005337,0.89485353,3519.6,3518.9,2.4047]
[1721573005543,0.08286353,3519.3,3518.9,2.4047]
[1721573005716,0.89485353,3519.5,3518.9,2.4047]
[1721573005916,0.08285472,3519.2,3518.9,2.4047]
[1721573006217,0.0828459,3519.1,3518.9,2.4047]
[1721573006408,0.89485353,3519.5,3518.9,2.4047]
[1721573006927,0.08287234,3519.4,3518.9,2.4047]
[1721573007623,0.97772587,3519.4,3518.9,2.4047]
[1721573008046,0.89485353,3519.3,3518.9,2.4047]
[1721573008253,0.0828553,3519.2,3518.9,2.4047]
[1721573008453,0.89485353,3519.2,3518.9,2.4047]
[1721573008767,0.08289435,3519.1,3518.9,2.4047]
[1721573009759,0.97774788,3519.1,3518.9,2.4047]
[1721573010865,0.89485353,3519.0,3518.9,2.4047]
[1721573011172,0.97773907,3519.0,3518.9,2.4047]
[1721573011469,0.08288554,3519.0,3518.9,2.4047]
[1721573011673,1.8241992,3519.0,3518.4,2.2768]
[1721573011881,0.89507208,3518.7,3518.4,2.2768]
[1721573012183,0.08288172,3518.6,3518.4,2.2768]
[1721573012671,0.89507208,3518.7,3518.4,2.2768]
[1721573012856,0.0828269,3518.6,3518.4,2.2768]
[1721573013086,0.89507208,3518.8,3518.4,2.2768]
[1721573013290,0.89507208,3518.7,3518.4,2.2768]
[1721573013592,0.97794464,3518.7,3518.4,2.2768]
[1721573015285,0.89507208,3518.5,3518.4,2.2768]
[1721573015670,0.08281259,3518.5,3518.4,2.2768]
[1721573016375,0.97805962,3518.5,3518.4,2.2768]
[1721573018496,0.08281259,3518.5,3518.4,2.2768]
[1721573019600,0.97805962,3518.5,3518.4,2.2768]
[1721573019895,0.89524703,3518.6,3518.4,2.2768]
[1721573020096,0.0827725,3518.5,3518.4,2.2768]
[1721573021167,0.97801953,3518.5,3518.4,2.2768]
[1721573021989,0.89485478,3518.6,3518.4,2.2768]
[1721573022308,0.07999671,3518.5,3518.4,2.2768]
[1721573022665,0.07999671,3518.5,3517.9,2.4143]
[1721573022874,0.89484928,3518.4,3517.9,2.4143]
[1721573023091,0.97482836,3518.3,3517.9,2.4143]
[1721573023576,0.07997908,3518.3,3517.9,3.58503]
[1721573024016,0.07997908,3518.3,3517.9,1.17073]
[1721573024237,0.07997908,3518.3,3518.0,2.4143]
[1721573024521,0.89484928,3518.5,3518.0,2.4143]
[1721573024667,0.89484928,3518.5,3518.2,2.4143]
[1721573024869,0.07995054,3518.4,3518.2,2.4143]
[1721573026004,0.97479982,3518.4,3518.2,2.4143]
[1721573027483,0.97479982,3518.4,3517.6,3.0]
[1721573027809,0.97479982,3518.4,3517.7,2.4143]
[1721573027810,0.89484928,3518.1,3517.7,2.4143]
[1721573027969,0.89484928,3518.2,3517.7,2.4143]
[1721573028194,0.07991677,3518.1,3517.7,2.4143]
[1721573028389,0.07991677,3518.1,3517.7,2.940025]
[1721573028593,0.89484928,3518.3,3517.7,2.940025]
[1721573028815,0.07989122,3518.0,3517.7,2.940025]
[1721573028988,0.89484928,3518.3,3517.7,2.940025]
[1721573029329,0.89484928,3518.4,3517.7,2.940025]
[1721573029636,0.07986215,3518.2,3517.8,0.7795795]
[1721573029836,0.07984646,3518.3,3517.8,0.7795795]
[1721573030122,0.07983876,3518.2,3517.8,0.7795795]
[1721573030428,0.07983876,3518.2,3517.9,2.4143]
[1721573030632,0.89484928,3518.4,3517.9,2.4143]
[1721573030842,0.89484928,3518.4,3517.9,3.01796295]
[1721573031003,0.07985984,3518.3,3517.9,3.01796295]
[1721573032051,0.89484928,3518.4,3517.9,3.01796295]
[1721573032202,0.07986496,3518.3,3517.9,3.01796295]
[1721573032957,0.07986496,3518.3,3518.0,5.25681]
[1721573033100,0.07986496,3518.3,3518.2,2.4143]
[1721573033303,0.89484928,3518.7,3518.2,2.4143]
[1721573033500,0.07986355,3518.3,3518.2,2.4143]
[1721573033710,0.89484928,3518.7,3518.2,2.4143]
[1721573033937,0.07986585,3518.3,3518.2,2.4143]
[1721573034162,0.89484928,3518.8,3518.2,3.20768052]
[1721573034321,1.19199959,3519.0,3518.2,3.20768052]
[1721573034322,0.07986585,3518.3,3518.2,3.20768052]
[1721573034642,0.89484928,3518.9,3518.2,6.05003052]
[1721573034936,0.07990994,3518.8,3518.2,6.05003052]
[1721573035303,0.07990994,3518.8,3518.3,2.4143]
[1721573035505,0.07990994,3518.8,3518.3,3.01930305]
[1721573035945,0.07890994,3518.8,3518.3,3.01930305]
[1721573036106,0.97375922,3518.8,3518.3,3.01930305]
[1721573036303,0.07890994,3518.8,3518.7,4.85495]
[1721573036504,0.07890994,3518.8,3518.7,7.28325]
[1721573036824,0.89484928,3519.6,3519.0,2.4283]
[1721573037427,0.0799862,3519.5,3519.0,2.4283]
[1721573038009,0.0799862,3519.5,3519.4,8.11108]
[1721573038220,1.78689883,3520.8,3519.9,2.84092]
[1721573038221,0.89484928,3520.4,3519.9,2.84092]
[1721573038454,0.07757275,3520.3,3520.0,2.4283]
[1721573038753,0.89484928,3520.7,3520.0,2.4283]
[1721573038957,0.07756395,3520.2,3520.0,2.4283]
[1721573039244,0.89484928,3520.8,3520.0,2.4283]
[1721573039452,0.07760488,3520.7,3520.0,2.4283]
[1721573039627,0.07760488,3520.7,3520.0,5.26914]
[1721573040663,0.07764369,3520.6,3520.2,2.013]
[1721573040813,0.89484928,3521.1,3520.2,2.013]
[1721573041014,0.07769948,3521.0,3520.2,2.013]
[1721573041427,0.07769948,3521.0,3520.2,4.85367]
[1721573041632,0.07769948,3521.0,3520.7,2.4283]
[1721573041891,3.73447928,3521.6,3520.7,2.4283]
[1721573042018,0.89484928,3521.5,3520.7,2.4283]
[1721573042220,0.71911686,3521.5,3520.7,2.4283]
[1721573042746,2.83986,3521.3,3520.7,2.4283]
[1721573042913,3.73470928,3521.3,3520.7,2.4283]
[1721573043111,0.0778045,3521.2,3520.7,2.4283]
[1721573043723,2.83986,3521.3,3520.7,2.4283]
[1721573043929,0.078011,3521.1,3520.7,2.4283]
[1721573044113,3.26608107,3521.2,3520.7,2.4283]
[1721573044317,0.0780022,3521.0,3520.7,2.4283]
[1721573044521,0.078011,3521.1,3520.7,2.4283]
[1721573044714,2.84034,3520.7,3520.2,2.4283]
[1721573044914,0.89484928,3521.4,3520.2,2.4283]
[1721573044915,0.89484928,3521.2,3520.2,2.4283]
[1721573045119,4.03177959,3521.4,3520.2,2.4283]
[1721573045120,0.07794155,3520.6,3520.2,2.4283]
[1721573045360,2.84012,3521.0,3520.2,2.4283]
[1721573045668,0.07797693,3520.9,3520.2,2.4283]
[1721573046431,0.89484928,3521.3,3520.2,2.4283]
[1721573046716,2.84004,3521.1,3520.2,2.4283]
[1721573046953,2.84027,3520.8,3520.2,2.4283]
[1721573047339,0.07795932,3520.7,3520.2,2.4283]
[1721573048322,2.84026,3520.8,3520.2,2.4283]
[1721573048573,0.07795052,3520.6,3519.8,2.4452]
[1721573048866,0.38128926,3521.0,3519.8,2.4452]
[1721573048867,2.84075,3520.2,3519.8,2.4452]
[1721573049024,2.84062,3520.4,3519.8,2.4452]
[1721573049224,2.84068,3520.3,3519.8,2.4452]
[1721573049423,2.91858129,3520.2,3519.8,2.4452]
[1721573050468,0.07783129,3520.2,3519.1,2.4452]
[1721573050686,2.84111,3519.8,3519.1,2.4452]
[1721573050845,0.07778232,3519.7,3519.1,2.4452]
[1721573051250,2.84094,3520.0,3519.1,2.4452]
[1721573051446,0.07778603,3519.9,3519.1,2.4452]
[1721573051647,0.59184713,3520.2,3519.1,4.4582]
[1721573051847,0.59184713,3520.2,3519.2,2.4452]
[1721573052175,2.8406,3520.4,3519.2,2.4452]
[1721573052377,2.8406,3520.4,3519.2,5.28668]
[1721573052579,4.05352821,3520.9,3519.6,2.4452]
[1721573052580,0.07777286,3520.3,3519.6,2.4452]
[1721573052872,3.15867893,3520.9,3519.6,2.4452]
[1721573052873,2.84035,3520.7,3519.6,2.4452]
[1721573053076,0.07772935,3520.6,3519.8,2.84105]
[1721573053239,2.99889893,3520.9,3520.0,2.4452]
[1721573053586,0.07777143,3520.8,3520.0,2.4452]
[1721573054363,2.91803143,3520.8,3520.0,2.4452]
[1721573054635,0.07777143,3520.8,3520.0,2.4452]
[1721573055779,2.84044,3520.6,3520.0,2.4452]
[1721573056077,0.57584714,3520.5,3520.0,2.4452]
[1721573056290,3.49416575,3520.5,3520.0,2.4452]
[1721573056435,2.84072,3520.3,3519.6,2.2556]
[1721573056642,2.8406,3520.4,3519.6,2.2556]
[1721573056967,2.84075,3520.2,3519.6,2.2556]
[1721573057290,0.07780762,3520.1,3519.6,2.2556]
[1721573057886,2.84091,3520.0,3518.9,2.3743]
[1721573058044,2.84138,3519.5,3518.9,2.3743]
[1721573058244,0.07773995,3519.4,3518.9,2.3743]
[1721573058475,2.84099,3519.9,3518.9,2.3743]
[1721573058679,0.07773486,3519.8,3518.9,2.3743]